bitfinex/quotes_BTCUSD_20241205
["timestamp","ask_amount","ask_price","bid_price","bid_amount"]
[1733419538042,0.29127605,100940.0,100910.0,0.288279]
[1733419538274,0.09967605,100940.0,100910.0,0.476555]
[1733419538487,0.24967605,100940.0,100920.0,0.00099081]
[1733419538754,0.24967605,100940.0,100920.0,0.18925781]
[1733419539204,0.02,100950.0,100930.0,0.1495]
[1733419539424,0.02,100950.0,100940.0,0.10099056]
[1733419539674,0.02,100950.0,100940.0,0.36632056]
[1733419539896,0.02,100950.0,100940.0,0.36533]
[1733419540345,0.4115554,100980.0,100960.0,0.1474]
[1733419540346,0.0154244,100980.0,100960.0,0.1474]
[1733419540590,0.0154244,100980.0,100970.0,0.33605225]
[1733419540803,0.0154244,100980.0,100970.0,0.1766]
[1733419541061,0.0154244,100980.0,100970.0,0.335062]
[1733419541287,0.0154244,100980.0,100970.0,1.20833805]
[1733419541501,0.0154244,100980.0,100970.0,1.23665768]
[1733419542483,0.0154244,100980.0,100970.0,1.20833805]
[1733419542728,0.0164244,100980.0,100970.0,1.21433805]
[1733419542935,0.0174244,100980.0,100970.0,1.24765768]
[1733419543391,0.0017316,100990.0,100980.0,0.1]
[1733419543864,0.0017316,100990.0,100980.0,0.10099011]
[1733419544074,0.0017316,100990.0,100980.0,0.25943711]
[1733419544293,0.0017316,100990.0,100980.0,0.1]
[1733419545188,0.0017316,100990.0,100980.0,0.103]
[1733419545404,0.0016916,100990.0,100980.0,0.103]
[1733419545631,0.25236765,100990.0,100980.0,0.009]
[1733419545849,0.45040665,100990.0,100980.0,0.009]
[1733419546854,0.63505292,100990.0,100980.0,0.009]
[1733419547066,0.55040665,100990.0,100980.0,0.008]
[1733419547321,0.55040665,100990.0,100980.0,0.0066]
[1733419548030,0.55040665,100990.0,100980.0,0.006]
[1733419548233,0.1566916,100990.0,100980.0,0.006]
[1733419548453,0.0056916,100990.0,100980.0,0.1]
[1733419548682,0.0096916,100990.0,100980.0,0.1]
[1733419549136,0.0056916,100990.0,100980.0,0.1]
[1733419549362,0.2047316,100990.0,100970.0,0.1005]
[1733419549573,0.2007316,100990.0,100980.0,0.1]
[1733419549798,0.45040765,100990.0,100980.0,0.1005]
[1733419550017,0.45040765,100990.0,100980.0,0.1045]
[1733419550942,0.50765547,100990.0,100980.0,0.0045]
[1733419551186,0.44940765,100990.0,100980.0,0.0045]
[1733419551430,0.44940765,100990.0,100980.0,0.0055]
[1733419551870,0.44940765,100990.0,100980.0,0.0045]
[1733419552109,0.45340765,100990.0,100980.0,0.0005]
[1733419552510,0.198078,100970.0,100960.0,2.42700664]
[1733419552768,0.15,100970.0,100960.0,2.52700664]
[1733419553388,0.348078,100970.0,100960.0,2.42700664]
[1733419554102,0.15,100970.0,100960.0,2.43100664]
[1733419554356,0.15,100980.0,100960.0,2.53100664]
[1733419554568,0.15,100980.0,100970.0,0.1]
[1733419555931,0.15,100980.0,100970.0,0.101]
[1733419556418,0.44773505,100980.0,100970.0,0.001]
[1733419556629,0.44773505,100980.0,100970.0,0.005]
[1733419557282,0.24967605,100980.0,100970.0,0.005]
[1733419557559,0.24967605,100980.0,100970.0,0.105]
[1733419557787,0.44773505,100980.0,100970.0,0.104]
[1733419558039,0.44873505,100980.0,100970.0,0.104]
[1733419558274,0.64665427,100980.0,100970.0,0.004]
[1733419558498,0.54665427,100980.0,100970.0,0.004]
[1733419558729,0.44873505,100980.0,100970.0,0.004]
[1733419558945,0.64680805,100980.0,100950.0,0.10099051]
[1733419559165,0.84588505,100980.0,100950.0,0.10099051]
[1733419559386,0.84588505,100980.0,100950.0,0.1]
[1733419559614,0.15,100960.0,100940.0,2.9405]
[1733419559855,0.348106,100960.0,100940.0,2.9405]
[1733419560082,0.64589105,100960.0,100940.0,0.1]
[1733419560322,0.64589105,100960.0,100930.0,2.4775]
[1733419560323,0.29780305,100950.0,100930.0,2.4775]
[1733419560534,0.15,100940.0,100930.0,2.5285]
[1733419560760,0.24967605,100940.0,100930.0,2.5285]
[1733419560978,0.44781305,100940.0,100930.0,0.1]
[1733419561222,0.15,100940.0,100930.0,0.1]
[1733419561744,0.15,100940.0,100930.0,0.103]
[1733419561962,0.44781305,100940.0,100930.0,0.003]
[1733419562171,0.64596805,100940.0,100920.0,0.1]
[1733419562417,0.49600805,100930.0,100910.0,2.5799]
[1733419562664,0.15,100920.0,100910.0,0.6933]
[1733419562893,0.348176,100920.0,100910.0,0.6933]
[1733419563104,0.15,100920.0,100910.0,0.6933]
[1733419563801,0.15,100920.0,100910.0,0.7003]
[1733419564238,0.151,100930.0,100910.0,0.898486]
[1733419564456,0.44883505,100930.0,100910.0,0.7003]
[1733419564684,0.25067605,100930.0,100910.0,0.7003]
[1733419564902,0.44883305,100930.0,100910.0,0.7033]
[1733419565141,0.44783305,100930.0,100910.0,0.6963]
[1733419565335,0.44783305,100930.0,100910.0,0.6933]
[1733419565644,0.001,100920.0,100910.0,0.7043]
[1733419566102,0.001,100920.0,100910.0,0.7123]
[1733419566554,0.39785205,100920.0,100910.0,0.003]
[1733419566771,0.39785205,100920.0,100910.0,0.011]
[1733419566772,0.39577127,100920.0,100910.0,0.011]
[1733419566985,0.39577127,100920.0,100910.0,0.008]
[1733419567205,0.298196,100910.0,100900.0,1.64062718]
[1733419567454,0.63708798,100910.0,100900.0,1.64062718]
[1733419567637,0.54787205,100910.0,100900.0,1.64062718]
[1733419568332,0.44787205,100910.0,100900.0,1.64062718]
[1733419568554,0.15,100910.0,100900.0,1.74062718]
[1733419568779,0.15,100910.0,100900.0,1.74162718]
[1733419569033,0.15,100910.0,100900.0,1.64162718]
[1733419569263,0.352196,100910.0,100900.0,1.74162718]
[1733419569501,0.348196,100910.0,100900.0,1.74162718]
[1733419569723,0.15,100910.0,100900.0,1.74562718]
[1733419570179,0.198159,100930.0,100910.0,0.1]
[1733419570414,0.49599405,100930.0,100910.0,0.1]
[1733419570633,0.29785205,100920.0,100910.0,0.1]
[1733419570857,0.001,100910.0,100900.0,1.78682718]
[1733419571301,0.49604005,100920.0,100900.0,1.78682718]
[1733419571596,0.15,100910.0,100900.0,1.78682718]
[1733419572458,0.4128,100910.0,100900.0,1.64162718]
[1733419572970,0.348196,100910.0,100900.0,1.64562718]
[1733419573470,0.44787205,100910.0,100900.0,1.64162718]
[1733419573690,0.44787205,100910.0,100900.0,1.64562718]
[1733419573909,0.44787205,100910.0,100900.0,1.64462718]
[1733419574136,0.54229566,100910.0,100900.0,1.64162718]
[1733419574352,0.44787205,100910.0,100900.0,1.64162718]
[1733419574570,0.44787205,100910.0,100900.0,1.64062718]
[1733419575012,0.44887205,100910.0,100900.0,1.64062718]
[1733419575664,0.24967605,100910.0,100900.0,1.64062718]
[1733419575916,0.198145,100940.0,100910.0,0.1]
[1733419576133,0.29783405,100930.0,100910.0,0.1]
[1733419576846,0.49600205,100930.0,100910.0,0.1]
[1733419577115,0.49600205,100930.0,100910.0,0.104]
[1733419577350,0.15,100920.0,100910.0,0.104]
[1733419578030,0.15,100920.0,100910.0,0.105]
[1733419578464,0.15,100920.0,100910.0,0.1]
[1733419578679,0.15,100920.0,100910.0,0.1018663]
[1733419578904,0.24967605,100920.0,100910.0,0.1058663]
[1733419579116,0.24967605,100920.0,100910.0,0.1018663]
[1733419579375,0.51245236,100920.0,100910.0,0.1058663]
[1733419580039,0.44785205,100920.0,100910.0,0.1058663]
[1733419580274,0.44785205,100920.0,100910.0,0.1008663]
[1733419580486,0.44785205,100920.0,100910.0,0.1048663]
[1733419580719,0.44785205,100920.0,100910.0,0.1058663]
[1733419581200,0.44785205,100920.0,100910.0,0.0048663]
[1733419581414,0.44885205,100920.0,100910.0,0.0048663]
[1733419581630,0.44885205,100920.0,100910.0,0.0008663]
[1733419582052,0.44885205,100920.0,100910.0,0.1008663]
[1733419582900,0.44885205,100920.0,100910.0,0.0008663]
[1733419584655,0.69932708,100920.0,100910.0,0.0008663]
[1733419585533,0.62885205,100920.0,100910.0,0.0008663]
[1733419586609,0.62785205,100920.0,100910.0,0.0008663]
[1733419587094,0.62885205,100920.0,100910.0,0.0008663]
[1733419587571,0.62785205,100920.0,100910.0,0.0008663]
[1733419587784,0.53185205,100920.0,100910.0,0.0008663]
[1733419587997,0.62977127,100920.0,100910.0,0.0008663]
[1733419588927,0.198196,100910.0,100900.0,1.60098348]
[1733419589153,0.37287205,100910.0,100900.0,1.60098348]
[1733419589363,0.37287205,100910.0,100900.0,1.58116148]
[1733419589600,0.47079127,100910.0,100900.0,1.58116148]
[1733419590277,0.52749127,100910.0,100900.0,1.50287348]
[1733419590491,0.53649127,100910.0,100900.0,1.38494148]
[1733419590723,0.68649127,100910.0,100900.0,1.35683491]
[1733419590966,0.68649127,100910.0,100900.0,1.15063491]
[1733419591165,0.59659127,100910.0,100900.0,1.02253491]
[1733419591379,0.59659127,100910.0,100900.0,0.94264528]
[1733419591586,0.59659127,100910.0,100900.0,0.90300128]
[1733419592491,0.59659127,100910.0,100900.0,0.80389128]
[1733419592731,0.89659127,100910.0,100900.0,0.80389128]
[1733419592942,1.39879127,100910.0,100900.0,0.77149128]
[1733419593368,1.39879127,100910.0,100900.0,0.73184728]
[1733419593578,1.39879127,100910.0,100900.0,0.65235604]
[1733419594442,1.39879127,100910.0,100900.0,0.57306804]
[1733419594693,1.39879127,100910.0,100900.0,0.55324604]
[1733419595349,1.39879127,100910.0,100900.0,0.53342404]
[1733419595594,1.39879127,100910.0,100900.0,0.49378004]
[1733419595878,1.38979127,100910.0,100900.0,0.45313604]
[1733419596293,0.55519127,100910.0,100900.0,0.45313604]
[1733419596528,0.56419127,100910.0,100900.0,0.31585085]
[1733419596987,0.54619127,100910.0,100900.0,0.31485085]
[1733419597270,0.55519127,100910.0,100900.0,0.31485085]
[1733419597498,0.56419127,100910.0,100900.0,0.23656285]
[1733419597729,0.56419127,100910.0,100900.0,0.21674085]
[1733419597954,0.1,100840.0,100810.0,0.0824]
[1733419598171,0.15,100820.0,100810.0,0.0824]
[1733419598403,0.44804905,100820.0,100810.0,0.0824]
[1733419599315,0.54804905,100820.0,100810.0,0.0824]
[1733419599555,0.54904905,100820.0,100810.0,0.0824]
[1733419601795,0.54904905,100820.0,100810.0,0.0832668]
[1733419602009,0.61060041,100820.0,100810.0,0.0832668]
[1733419602696,0.60960041,100820.0,100810.0,0.0832668]
[1733419603116,0.61160041,100820.0,100810.0,0.0832668]
[1733419603583,0.61360041,100820.0,100810.0,0.0832668]
[1733419605065,0.61160041,100820.0,100810.0,0.0832668]
[1733419605926,0.71160041,100820.0,100810.0,0.0008668]
[1733419606344,0.70960041,100820.0,100810.0,0.0008668]
[1733419606565,0.61760041,100820.0,100810.0,0.0008668]
[1733419606790,0.51760041,100820.0,100810.0,0.0008668]
[1733419607003,0.51260041,100820.0,100810.0,0.0008668]
[1733419607484,0.51160041,100820.0,100810.0,0.0008668]
[1733419607690,0.51460041,100820.0,100810.0,8e-07]
[1733419607902,0.51260041,100820.0,100810.0,8e-07]
[1733419608172,0.51660041,100820.0,100810.0,8e-07]
[1733419609468,0.52560041,100820.0,100810.0,8e-07]
[1733419609691,0.198412,100800.0,100790.0,1e-07]
[1733419609953,0.38761035,100800.0,100790.0,1e-07]
[1733419611073,0.39661035,100800.0,100790.0,1e-07]
[1733419611321,0.54661035,100800.0,100790.0,1e-07]
[1733419612442,0.55708805,100800.0,100790.0,1e-07]
[1733419612695,0.198432,100790.0,100780.0,0.07318268]
[1733419612906,0.09967605,100790.0,100780.0,0.07318268]
[1733419613111,0.016,100800.0,100790.0,0.0468]
[1733419613319,0.239683,100840.0,100800.0,0.0468]
[1733419613320,0.198366,100830.0,100800.0,0.0468]
[1733419613535,0.09967605,100820.0,100800.0,0.15691298]
[1733419613754,0.29803005,100830.0,100810.0,0.0455]
[1733419613979,0.69476205,100830.0,100810.0,0.0455]
[1733419614199,0.200108,100820.0,100810.0,0.0455]
[1733419614419,0.001735,100820.0,100810.0,0.0455]
[1733419614859,0.350108,100820.0,100810.0,0.0455]
[1733419615300,0.44978405,100820.0,100810.0,0.0455]
[1733419615513,0.25141105,100820.0,100810.0,0.1243]
[1733419615727,0.001735,100820.0,100810.0,0.1243]
[1733419615945,0.002735,100820.0,100810.0,0.1243]
[1733419616159,0.002735,100820.0,100810.0,0.1273]
[1733419616404,0.001735,100820.0,100810.0,0.1273]
[1733419616845,0.002735,100820.0,100810.0,0.1303]
[1733419617064,0.198334,100840.0,100810.0,0.13129186]
[1733419617284,0.09967605,100840.0,100820.0,0.0792]
[1733419617496,0.29801905,100840.0,100820.0,0.0792]
[1733419617756,0.49636405,100840.0,100820.0,0.0792]
[1733419617970,0.29801905,100840.0,100820.0,0.0792]
[1733419618185,0.09967605,100840.0,100820.0,0.10333068]
[1733419618416,0.09967605,100840.0,100830.0,0.1243]
[1733419618636,0.24967605,100840.0,100830.0,0.1243]
[1733419619303,0.44800905,100840.0,100830.0,0.1243]
[1733419619521,0.24967605,100840.0,100830.0,0.1243]
[1733419619736,0.44800905,100840.0,100830.0,0.1243]
[1733419619994,0.44900905,100840.0,100830.0,0.1243]
[1733419620228,0.44800905,100840.0,100830.0,0.1243]
[1733419620460,0.44800905,100840.0,100830.0,0.1273]
[1733419620677,0.53247486,100840.0,100830.0,0.0796]
[1733419621322,0.44800905,100840.0,100830.0,0.0796]
[1733419621544,0.24967605,100840.0,100830.0,0.0796]
[1733419622458,0.25167605,100840.0,100830.0,0.0796]
[1733419622667,0.25167605,100840.0,100830.0,0.0766]
[1733419622963,0.45000905,100840.0,100830.0,0.0766]
[1733419623387,0.45000905,100840.0,100830.0,0.08426]
[1733419623388,0.25167605,100840.0,100830.0,0.08426]
[1733419624055,0.45000905,100840.0,100830.0,0.0786]
[1733419626011,0.45174405,100840.0,100830.0,0.0786]
[1733419626236,0.44974405,100840.0,100830.0,0.0766]
[1733419626688,0.45474405,100840.0,100830.0,0.0766]
[1733419627363,0.006735,100840.0,100830.0,0.125]
[1733419627606,0.11550992,100900.0,100840.0,0.0827]
[1733419627858,0.198283,100870.0,100850.0,0.0486]
[1733419628066,0.09967605,100870.0,100860.0,0.0762]
[1733419628736,0.29795105,100870.0,100860.0,0.0762]
[1733419628955,0.09967605,100870.0,100860.0,0.0762]
[1733419629197,0.24967605,100870.0,100860.0,0.0762]
[1733419629392,0.09967605,100870.0,100860.0,0.0762]
[1733419629843,0.594731,100890.0,100860.0,0.0762]
[1733419630062,0.09967605,100880.0,100860.0,0.07719134]
[1733419630304,0.002,100870.0,100860.0,0.10960127]
[1733419630559,0.004,100870.0,100860.0,0.15820127]
[1733419630769,0.002,100870.0,100860.0,0.15720993]
[1733419630987,0.002,100870.0,100860.0,0.1248]
[1733419631437,0.002,100870.0,100860.0,0.12579133]
[1733419631680,0.198216,100900.0,100870.0,0.0796]
[1733419631893,0.49612005,100900.0,100880.0,0.0476]
[1733419632108,0.001,100890.0,100880.0,0.0476]
[1733419632542,0.29789205,100900.0,100880.0,0.0476]
[1733419632758,0.49612005,100900.0,100880.0,0.0476]
[1733419632990,0.15,100890.0,100880.0,0.0476]
[1733419633447,0.15,100890.0,100880.0,0.14201912]
[1733419633664,0.15,100890.0,100880.0,0.14301912]
[1733419634118,0.24967605,100900.0,100880.0,0.14501912]
[1733419634379,0.0017336,100910.0,100880.0,0.24414512]
[1733419634602,0.10140965,100910.0,100890.0,0.0796]
[1733419634818,0.10140965,100910.0,100890.0,0.08059105]
[1733419635473,0.49780665,100910.0,100890.0,0.08059105]
[1733419635768,0.10140965,100910.0,100890.0,0.08059105]
[1733419635975,0.10140965,100910.0,100890.0,0.0796]
[1733419636189,0.15,100900.0,100890.0,0.0856]
[1733419636840,0.15,100900.0,100890.0,0.0886]
[1733419637058,0.15,100900.0,100890.0,0.0826]
[1733419637962,0.15,100900.0,100890.0,0.0796]
[1733419638434,0.15,100900.0,100890.0,0.0886]
[1733419638868,0.15,100900.0,100890.0,0.0856]
[1733419639108,0.151,100900.0,100890.0,0.0996]
[1733419639309,0.151,100900.0,100890.0,0.09996344]
[1733419639538,0.151,100900.0,100890.0,0.09496344]
[1733419639751,0.151,100900.0,100890.0,0.0796]
[1733419639962,0.151,100900.0,100890.0,0.0826]
[1733419640168,0.151,100900.0,100890.0,0.0886]
[1733419640590,0.151,100900.0,100870.0,1.19845581]
[1733419640840,0.151,100900.0,100880.0,0.00099106]
[1733419641467,0.15,100900.0,100880.0,0.00099106]
[1733419641680,0.151,100900.0,100880.0,0.00099106]
[1733419642393,0.15,100900.0,100880.0,0.00899106]
[1733419642849,0.15,100900.0,100880.0,0.01299106]
[1733419643080,0.15,100900.0,100890.0,0.02025422]
[1733419643550,0.15,100900.0,100890.0,0.15135422]
[1733419644832,0.15,100900.0,100890.0,0.15535422]
[1733419645488,0.15,100900.0,100890.0,0.15735422]
[1733419645997,0.44888736,100900.0,100890.0,0.006]
[1733419646239,0.44789205,100900.0,100890.0,0.006]
[1733419647120,0.15,100900.0,100890.0,0.006]
[1733419647350,0.15,100900.0,100890.0,0.0861]
[1733419647598,0.50370002,100900.0,100890.0,0.002]
[1733419647800,0.44789205,100900.0,100890.0,0.002]
[1733419648004,0.44789205,100900.0,100890.0,0.003]
[1733419648244,0.198255,100880.0,100870.0,0.94026846]
[1733419648678,0.49616205,100890.0,100870.0,0.94026846]
[1733419649110,0.77885186,100890.0,100870.0,0.94026846]
[1733419649328,0.29793105,100880.0,100870.0,0.61466181]
[1733419649566,0.29793105,100880.0,100870.0,0.000867]
[1733419651155,0.348218,100900.0,100880.0,0.0771]
[1733419651380,0.64611905,100900.0,100880.0,0.0771]
[1733419651590,0.34923031,100890.0,100880.0,0.0771]
[1733419651805,0.15,100890.0,100880.0,0.0855967]
[1733419652231,0.49611905,100900.0,100880.0,0.0771]
[1733419652873,0.69434805,100900.0,100880.0,0.0781]
[1733419653299,0.49611905,100900.0,100880.0,0.0771]
[1733419653504,0.15,100890.0,100880.0,0.1255]
[1733419655087,0.15,100890.0,100880.0,0.1245]
[1733419655297,0.15,100890.0,100880.0,0.1255]
[1733419655481,0.15,100890.0,100880.0,0.13823582]
[1733419655952,0.3981526,100910.0,100880.0,0.13823582]
[1733419656191,0.0017336,100910.0,100890.0,0.63290405]
[1733419656403,0.0017336,100910.0,100900.0,0.0799]
[1733419656625,0.0017336,100910.0,100900.0,0.22535062]
[1733419656837,0.0017336,100910.0,100900.0,0.32346771]
[1733419657953,0.0017336,100910.0,100900.0,0.22435971]
[1733419658384,0.0017336,100910.0,100900.0,0.48721233]
[1733419658834,0.0027336,100910.0,100900.0,0.49421233]
[1733419659258,0.0037336,100910.0,100900.0,0.50321233]
[1733419659918,0.0037336,100910.0,100900.0,0.99043865]
[1733419660123,0.0037336,100910.0,100900.0,0.92726208]
[1733419660334,0.001735,100930.0,100910.0,0.0765]
[1733419660560,0.435806,100970.0,100930.0,0.0765]
[1733419660772,0.29877036,100960.0,100930.0,0.07749059]
[1733419661027,0.49687836,100960.0,100930.0,0.07749059]
[1733419661277,0.69499036,100960.0,100930.0,0.07749059]
[1733419661502,0.49687836,100960.0,100930.0,0.10009512]
[1733419661719,0.49687836,100960.0,100930.0,0.10909512]
[1733419661720,0.15,100950.0,100930.0,0.10909512]
[1733419662414,0.15,100950.0,100930.0,0.12309512]
[1733419662647,0.15,100950.0,100930.0,0.10509512]
[1733419662885,0.24967605,100950.0,100930.0,0.01273582]
[1733419663527,0.10091429,100940.0,100920.0,5.00445383]
[1733419663782,0.348157,100930.0,100920.0,0.51785383]
[1733419663991,0.44783305,100930.0,100920.0,0.51785383]
[1733419664838,0.24967605,100930.0,100920.0,0.52385383]
[1733419665292,0.44783305,100930.0,100920.0,0.004]
[1733419665501,0.53224666,100930.0,100920.0,0.006]
[1733419665712,0.44783305,100930.0,100920.0,0.006]
[1733419667956,0.44783305,100930.0,100920.0,0.002]
[1733419668163,0.396417,100910.0,100880.0,0.20616015]
[1733419668387,0.29788105,100910.0,100880.0,2.56286015]
[1733419668596,0.29788105,100910.0,100880.0,2.66077937]
[1733419668823,0.29788305,100910.0,100880.0,2.45461922]
[1733419669127,0.49613105,100900.0,100880.0,2.46528268]
[1733419669324,0.198235,100890.0,100880.0,2.3963843]
[1733419669553,0.29791105,100890.0,100880.0,2.3657]
[1733419670238,0.29791105,100890.0,100880.0,2.3567]
[1733419670463,0.42221105,100890.0,100870.0,0.000867]
[1733419670677,0.44917032,100880.0,100870.0,0.000867]
[1733419670891,0.44793105,100880.0,100870.0,0.000867]
[1733419672496,0.44993105,100880.0,100870.0,0.003867]
[1733419672910,0.44993105,100880.0,100870.0,0.000867]
[1733419673626,0.45093105,100880.0,100870.0,0.000867]
[1733419673884,0.54885027,100880.0,100870.0,0.000867]
[1733419678075,0.54685027,100880.0,100870.0,0.000867]
[1733419678295,0.54585027,100880.0,100870.0,0.000867]
[1733419678537,0.54885027,100880.0,100870.0,0.000867]
[1733419678758,0.55285027,100880.0,100870.0,0.000867]
[1733419680150,0.45493105,100880.0,100870.0,0.000867]
[1733419680394,0.007,100880.0,100870.0,0.000867]
[1733419680659,0.007,100880.0,100870.0,0.46514846]
[1733419681122,0.004,100880.0,100870.0,0.3928477]
[1733419681336,0.39769081,100900.0,100870.0,0.65779165]
[1733419681519,0.39769081,100900.0,100870.0,0.36516928]
[1733419681520,0.09967605,100890.0,100870.0,0.36516928]
[1733419681774,0.24967605,100890.0,100870.0,0.26984011]
[1733419681999,0.44791205,100890.0,100870.0,0.26984011]
[1733419682427,0.001,100880.0,100870.0,0.27784011]
[1733419682848,0.001,100880.0,100870.0,0.28584011]
[1733419683034,0.001,100880.0,100870.0,0.28184011]
[1733419683211,0.001,100880.0,100870.0,0.28484011]
[1733419683413,0.001,100880.0,100870.0,0.58157238]
[1733419683631,0.001,100880.0,100870.0,0.78157238]
[1733419683832,0.001,100890.0,100880.0,0.299127]
[1733419684008,0.1998998,100930.0,100890.0,0.298225]
[1733419684230,0.1998998,100930.0,100890.0,0.39790105]
[1733419684231,0.29957485,100930.0,100890.0,0.39790105]
[1733419684456,0.49773985,100930.0,100890.0,0.38742422]
[1733419684752,0.49773985,100930.0,100890.0,1.04449192]
[1733419684953,0.69591385,100930.0,100890.0,0.65251122]
[1733419685577,0.15,100920.0,100890.0,0.66151122]
[1733419686196,0.15,100920.0,100890.0,0.85974122]
[1733419686392,0.15,100920.0,100890.0,0.75162422]
[1733419686566,0.15,100920.0,100890.0,0.75662422]
[1733419687038,0.49874185,100930.0,100900.0,0.19878305]
[1733419687039,0.1517338,100930.0,100900.0,0.19878305]
[1733419687309,0.3498908,100930.0,100900.0,0.19474867]
[1733419688165,0.3498908,100930.0,100900.0,0.19774867]
[1733419688581,0.64773785,100930.0,100900.0,0.10407262]
[1733419688805,0.198178,100920.0,100900.0,0.10407262]
[1733419688976,0.396364,100920.0,100900.0,0.009]
[1733419689218,0.198178,100920.0,100900.0,0.009]
[1733419689456,0.348196,100910.0,100900.0,0.009]
[1733419689661,0.44787205,100910.0,100900.0,0.006]
[1733419689844,0.64608305,100910.0,100880.0,7.1273]
[1733419690045,0.64608305,100910.0,100900.0,0.003]
[1733419691137,0.198221,100900.0,100880.0,7.0743]
[1733419691678,0.84429505,100910.0,100880.0,7.0743]
[1733419692094,0.64608305,100910.0,100900.0,0.007]
[1733419692417,0.198216,100900.0,100890.0,0.01953233]
[1733419693024,0.198235,100890.0,100880.0,5.9448]
[1733419693243,0.29791105,100890.0,100880.0,2.3588]
[1733419693428,0.44791105,100890.0,100880.0,2.3658]
[1733419693863,0.44791105,100890.0,100880.0,2.3588]
[1733419694077,0.44791105,100890.0,100880.0,2.3618]
[1733419694300,0.24967605,100890.0,100880.0,2.3618]
[1733419694988,0.44791105,100890.0,100880.0,2.3618]
[1733419695209,0.24967605,100890.0,100880.0,2.3688]
[1733419695893,0.15,100900.0,100880.0,2.46671922]
[1733419696110,0.44790005,100900.0,100880.0,2.3688]
[1733419696323,0.44790005,100900.0,100880.0,2.3588]
[1733419696559,0.44790005,100900.0,100880.0,2.3598]
[1733419696560,0.24967605,100900.0,100880.0,2.3598]
[1733419696766,0.24967605,100900.0,100880.0,2.3628]
[1733419697013,0.44789205,100900.0,100880.0,2.3618]
[1733419697227,0.44789205,100900.0,100880.0,2.45971922]
[1733419697437,0.24967605,100900.0,100880.0,2.46271922]
[1733419697856,0.44789205,100900.0,100880.0,2.45971922]
[1733419698295,0.44789205,100900.0,100880.0,2.46671922]
[1733419698719,0.64611905,100900.0,100880.0,2.46671922]
[1733419698935,0.64611905,100900.0,100880.0,2.3688]
[1733419699155,0.24967605,100900.0,100880.0,2.3688]
[1733419700628,0.44789405,100900.0,100880.0,2.3688]
[1733419701505,0.24967605,100900.0,100880.0,2.3688]
[1733419702157,0.44789305,100900.0,100880.0,2.3688]
[1733419702392,0.348235,100890.0,100880.0,2.3688]
[1733419702621,0.44791105,100890.0,100880.0,0.5282]
[1733419703241,0.44791105,100890.0,100880.0,0.5252]
[1733419703934,0.44791105,100890.0,100880.0,0.5282]
[1733419704149,0.44791105,100890.0,100880.0,0.5212]
[1733419704370,0.44791105,100890.0,100880.0,0.5282]
[1733419705523,0.44791105,100890.0,100880.0,0.5182]
[1733419705725,0.44791105,100890.0,100880.0,0.5192]
[1733419705935,0.44791105,100890.0,100880.0,0.5222]
[1733419707206,0.44791105,100890.0,100880.0,0.57649866]
[1733419707407,0.44791105,100890.0,100880.0,0.57736556]
[1733419707635,0.44791105,100890.0,100880.0,0.5230669]
[1733419708285,0.15,100890.0,100880.0,0.5230669]
[1733419708746,0.44915008,100890.0,100880.0,0.5230669]
[1733419708984,0.44791105,100890.0,100880.0,0.5230669]
[1733419711641,0.44791105,100890.0,100880.0,0.5190669]
[1733419712014,0.44991105,100890.0,100880.0,0.5190669]
[1733419712900,0.59343027,100890.0,100880.0,0.0008669]
[1733419713103,0.69343027,100890.0,100880.0,0.0008669]
[1733419714322,0.69243027,100890.0,100880.0,0.0008669]
[1733419714537,0.69143027,100890.0,100880.0,0.0018669]
[1733419714761,0.69443027,100890.0,100880.0,0.0018669]
[1733419715014,0.70043027,100890.0,100880.0,0.0028669]
[1733419715224,0.67653027,100890.0,100880.0,0.0028669]
[1733419715435,0.67653027,100890.0,100880.0,9e-07]
[1733419716799,0.77653027,100890.0,100880.0,9e-07]
[1733419718312,0.67653027,100890.0,100840.0,0.02019365]
[1733419718525,0.198314,100850.0,100830.0,2.3606]
[1733419718754,0.10091553,100840.0,100830.0,2.3606]
[1733419719048,0.29924853,100840.0,100830.0,2.3606]
[1733419719294,0.29800905,100840.0,100830.0,2.3606]
[1733419720351,0.396603,100860.0,100830.0,2.3606]
[1733419720560,0.09967605,100860.0,100830.0,2.55851922]
[1733419720782,0.29797105,100860.0,100830.0,2.55851922]
[1733419721221,0.001,100840.0,100830.0,2.56351922]
[1733419721439,0.001,100840.0,100830.0,2.57251922]
[1733419722043,0.001,100840.0,100830.0,2.58151922]
[1733419722248,0.29797105,100860.0,100830.0,2.56751922]
[1733419722457,0.29797105,100860.0,100830.0,2.57651922]
[1733419722668,0.29897105,100860.0,100830.0,2.58151922]
[1733419723092,0.49727505,100860.0,100830.0,2.48151922]
[1733419723297,0.56682976,100860.0,100830.0,2.3656]
[1733419723531,0.49727505,100860.0,100830.0,2.3656]
[1733419723771,0.49756445,100850.0,100830.0,2.3656]
[1733419724028,0.49632505,100850.0,100830.0,2.3656]
[1733419724245,0.69465405,100850.0,100830.0,2.3656]
[1733419724461,0.68916639,100850.0,100830.0,2.3606]
[1733419724673,0.68916639,100850.0,100830.0,2.46751922]
[1733419724886,0.69016639,100850.0,100830.0,2.46351922]
[1733419725344,0.69016639,100850.0,100830.0,2.47251922]
[1733419725547,0.49183739,100850.0,100830.0,2.47251922]
[1733419725979,0.69016539,100850.0,100830.0,2.47251922]
[1733419726699,0.49183739,100850.0,100830.0,2.47251922]
[1733419726937,0.69016739,100850.0,100830.0,2.47251922]
[1733419727161,0.29351039,100850.0,100830.0,2.47251922]
[1733419727398,0.001,100850.0,100830.0,2.63120022]
[1733419728265,0.001,100850.0,100830.0,2.21272657]
[1733419729359,0.001,100850.0,100830.0,2.37140857]
[1733419729585,0.001,100850.0,100830.0,2.53007657]
[1733419729811,0.4437178,100890.0,100840.0,2.17327605]
[1733419730054,0.29964885,100890.0,100860.0,0.158634]
[1733419730286,0.49789285,100890.0,100860.0,0.5185]
[1733419730538,0.29964885,100890.0,100860.0,0.5185]
[1733419730749,0.49789285,100890.0,100860.0,0.5185]
[1733419730955,0.49789285,100890.0,100860.0,0.61641922]
[1733419731198,0.15,100880.0,100860.0,0.69671922]
[1733419731398,0.15,100880.0,100860.0,0.70371922]
[1733419732229,0.15,100880.0,100860.0,0.69671922]